[Event "Ujir Singh Thapa Memorial 2080"]
[Site "Butwal"]
[Date "2024.04.06"]
[Round "2.3"]
[White "Pokhrel, Sangam"]
[Black "Vipul Subhashi"]
[Result "0-1"]
[ECO "A34"]
[WhiteElo "1660"]
[BlackElo "1971"]
[Annotator "NA RC"]
[PlyCount "32"]
[EventDate "2024.04.03"]
[EventType "swiss"]
[EventCountry "NEP"]
[SourceTitle "playchess.com"]
[Source "ChessBase"]
[SourceQuality "1"]
[TimeControl "3600+30"]

1. e4 {[%emt 0:00:30]} c5 {[%emt 0:00:30]} 2. c4 {[%emt 0:00:30]} Nc6 {[%emt 0:00:30]} 3. Nf3 {[%emt 0:00:30]} e6 {[%emt 0:00:30]} 4. Nc3 {[%emt 0:00:30]} Nf6 {[%emt 0:00:30]} 5. e5 {[%emt 0:00:30]} Ng4 {[%emt 0:00:30]} 6. Qe2 {[%emt 0:00:30]} Qc7 {[%emt 0:00:30]} 7. Nb5 {[%emt 0:00:30]} Qb8 {[%emt 0:00:30]} 8. b3 {[%emt 0:00:30]} a6 {[%emt 0:00:30]} 9. Nd6+ {[%emt 0:00:30]} Bxd6 {[%emt 0:00:30]} 10. exd6 {[%emt 0:00:30]} Qxd6 {[%emt 0:00:30]} 11. Bb2 {[%emt 0:00:30]} f6 {[%emt 0:00:30]} 12. h3 {[%emt 0:00:30]} Nh6 {[%emt 0:00:30]} 13. Nh4 {[%emt 0:00:30]} Nd4 {[%emt 0:00:30]} 14. Qd1 {[%emt 0:00:30]} Qe5+ {[%emt 0:00:30]} 15. Be2 {[%emt 0:00:30]} Qe4 {[%emt 0:00:30]} 16. Bxd4 {[%emt 0:00:30]} cxd4 {[%emt 0:00:30]} 0-1

[Event "Ujir Singh Thapa Memorial 2080"]
[Site "Butwal"]
[Date "2024.04.06"]
[Round "2.4"]
[White "Jaiswal, Rupesh"]
[Black "Shrestha, Sudesh"]
[Result "1-0"]
[ECO "A30"]
[WhiteElo "1969"]
[BlackElo "1659"]
[Annotator "RC"]
[PlyCount "24"]
[EventDate "2024.04.03"]
[EventType "swiss"]
[EventCountry "NEP"]
[SourceTitle "playchess.com"]
[Source "ChessBase"]
[SourceQuality "1"]
[TimeControl "3600+30"]

1. c4 c5 2. Nf3 Qc7 3. g4 b6 4. Bg2 Bb7 5. d3 e5 6. O-O Nc6 7. Nc3 d6 8. Nh4 g6 9. f4 f6 10. Nd5 Qg7 11. e3 Rc8 12. Bh3 {[%emt 0:30:47]} Rb8 {[%emt 0:21:56]} 1-0

[Event "Ujir Singh Thapa Memorial 2080"]
[Site "Butwal"]
[Date "2024.04.07"]
[Round "3.1"]
[White "Jamal Uddin"]
[Black "Harsh, Himanshu"]
[Result "0-1"]
[ECO "A07"]
[WhiteElo "1989"]
[BlackElo "1855"]
[Annotator "RC"]
[PlyCount "64"]
[EventDate "2024.04.03"]
[EventType "swiss"]
[EventCountry "NEP"]
[SourceTitle "playchess.com"]
[Source "ChessBase"]
[SourceQuality "1"]
[TimeControl "3600+30"]

1. Nf3 {[%emt 0:06:06]} d5 {[%emt 0:00:14]} 2. c4 {[%emt 0:00:36]} c6 {[%emt 0:00:24]} 3. g3 {[%emt 0:00:34]} Nf6 {[%emt 0:00:29]} 4. Bg2 {[%emt 0:00:19]} Bf5 {[%emt 0:01:05]} 5. O-O {[%emt 0:01:06]} Nbd7 {[%emt 0:00:16]} 6. b3 {[%emt 0:03:15]} e5 {[%emt 0:00:16]} 7. d3 {[%emt 0:00:34]} Bd6 {[%emt 0:00:18]} 8. Bb2 {[%emt 0:00:34]} O-O {[%emt 0:01:23]} 9. Nbd2 {[%emt 0:00:30]} Qe7 {[%emt 0:02:41]} 10. Nh4 {[%emt 0:01:59]} Bg6 {[%emt 0:04:49]} 11. e4 {[%emt 0:00:51]} dxe4 {[%emt 0:04:09]} 12. dxe4 {[%emt 0:01:15]} Rad8 {[%emt 0:05:40]} 13. Qe2 {[%emt 0:01:04]} Bh5 {[%emt 0:11:48]} 14. f3 {[%emt 0:03:23]} Bb4 {[%emt 0:02:59]} 15. Rad1 {[%emt 0:01:48]} Nc5 {[%emt 0:01:14]} 16. Nf5 {[%emt 0:00:43]} Qc7 {[%emt 0:01:08]} 17. g4 {[%emt 0:05:16]} Nd3 {[%emt 0:04:10]} 18. Ba1 {[%emt 0:01:30]} Bg6 {[%emt 0:01:18]} 19. h4 {[%emt 0:01:23]} Bc5+ {[%emt 0:05:38]} 20. Kh2 {[%emt 0:00:24]} Bxf5 {[%emt 0:00:14]} 21. gxf5 {[%emt 0:07:48]} Nh5 {[%emt 0:01:06]} 22. f4 {[%emt 0:01:37]} Nhxf4 {[%emt 0:01:51]} 23. Qg4 {[%emt 0:00:19]} f6 {[%emt 0:02:15]} 24. Qf3 {[%emt 0:04:38]} Rf7 {[%emt 0:02:51]} 25. Nb1 {[%emt 0:02:38]} Rfd7 {[%emt 0:00:29]} 26. Rd2 {[%emt 0:00:46]} Ne1 {[%emt 0:01:01]} 27. Rxe1 Rxd2 {[%emt 0:00:11]} 28. Nxd2 {[%emt 0:05:37]} Rxd2 {[%emt 0:00:06]} 29. Rd1 {[%emt 0:00:38]} Rxg2+ {[%emt 0:00:41]} 30. Kh1 {[%emt 0:00:02]} Qa5 {[%emt 0:02:14]} 31. a4 {[%emt 0:01:27]} Rd2 {[%emt 0:00:19]} 32. Rf1 {[%emt 0:02:32]} Rd3 {[%emt 0:00:07]} 0-1

[Event "Ujir Singh Thapa Memorial 2080"]
[Site "Butwal"]
[Date "2024.04.07"]
[Round "3.2"]
[White "Ashutosh, Kumar"]
[Black "Raghav, Srivathsav V"]
[Result "0-1"]
[ECO "E92"]
[WhiteElo "1850"]
[BlackElo "1983"]
[Annotator "RC"]
[PlyCount "102"]
[EventDate "2024.04.03"]
[EventType "swiss"]
[EventCountry "NEP"]
[SourceTitle "playchess.com"]
[Source "ChessBase"]
[SourceQuality "1"]
[TimeControl "3600+30"]

1. d4 {[%emt 0:00:03]} Nf6 {[%emt 0:19:48]} 2. c4 {[%emt 0:00:06]} g6 {[%emt 0:00:13]} 3. Nc3 {[%emt 0:00:11]} Bg7 {[%emt 0:00:02]} 4. e4 {[%emt 0:00:17]} d6 {[%emt 0:00:05]} 5. Be2 {[%emt 0:00:06]} O-O {[%emt 0:00:07]} 6. Nf3 {[%emt 0:00:13]} e5 {[%emt 0:00:23]} 7. d5 {[%emt 0:00:08]} a5 {[%emt 0:00:09]} 8. h3 {[%emt 0:00:14]} Na6 9. Bg5 {[%emt 0:03:52]} Nc5 {[%emt 0:03:35]} 10. Nd2 {[%emt 0:00:47]} Bd7 {[%emt 0:03:04]} 11. g4 {[%emt 0:01:10]} c6 {[%emt 0:03:15]} 12. h4 {[%emt 0:06:30]} h6 {[%emt 0:06:19]} 13. Be3 {[%emt 0:00:37]} cxd5 {[%emt 0:00:08]} 14. exd5 {[%emt 0:02:24]} Ne8 {[%emt 0:01:36]} 15. h5 {[%emt 0:02:11]} g5 {[%emt 0:02:31]} 16. Nde4 {[%emt 0:01:12]} Nxe4 {[%emt 0:00:34]} 17. Nxe4 {[%emt 0:00:14]} f5 {[%emt 0:00:31]} 18. gxf5 {[%emt 0:01:21]} Bxf5 {[%emt 0:00:03]} 19. Ng3 {[%emt 0:01:42]} Bd7 {[%emt 0:02:30]} 20. Bd3 {[%emt 0:09:35]} a4 {[%emt 0:02:28]} 21. Ne4 {[%emt 0:01:55]} Rf4 {[%emt 0:02:36]} 22. Qd2 {[%emt 0:03:02]} Qe7 {[%emt 0:03:59]} 23. a3 {[%emt 0:08:03]} Bg4 {[%emt 0:04:20]} 24. Ng3 {[%emt 0:02:08]} Nf6 {[%emt 0:02:30]} 25. Rh2 {[%emt 0:04:44]} Re8 26. Rc1 {[%emt 0:01:36]} Kh8 {[%emt 0:02:39]} 27. Kf1 {[%emt 0:05:17]} Qd7 {[%emt 0:00:08]} 28. Kg1 {[%emt 0:00:58]} Rc8 {[%emt 0:01:47]} 29. Rc3 {[%emt 0:04:58]} Rf8 {[%emt 0:05:42]} 30. Bg6 {[%emt 0:01:49]} Bh3 {[%emt 0:02:11]} 31. Bb6 {[%emt 0:04:22]} Rh4 {[%emt 0:01:27]} 32. f3 {[%emt 0:03:17]} e4 {[%emt 0:00:22]} 33. fxe4 {[%emt 0:00:29]} Ng4 {[%emt 0:00:20]} 34. Nf5 {[%emt 0:01:17]} Nxh2 {[%emt 0:00:02]} 35. Nxh4 {[%emt 0:00:30]} gxh4 {[%emt 0:00:11]} 36. Kxh2 {[%emt 0:00:11]} Be5+ {[%emt 0:00:08]} 37. Kh1 {[%emt 0:00:13]} Rf1+ {[%emt 0:02:15]} 38. Bg1 {[%emt 0:00:05]} Bf4 {[%emt 0:00:12]} 39. Qe2 {[%emt 0:00:56]} Bg5 {[%emt 0:00:35]} 40. e5 {[%emt 0:00:25]} dxe5 {[%emt 0:00:18]} 41. Qxe5+ {[%emt 0:00:30]} Bf6 {[%emt 0:00:26]} 42. Qe3 {[%emt 0:00:36]} Rxg1+ {[%emt 0:00:42]} 43. Qxg1 {[%emt 0:00:29]} Bxc3 {[%emt 0:00:28]} 44. bxc3 {[%emt 0:00:06]} Qe7 {[%emt 0:00:27]} 45. Qd4+ {[%emt 0:00:43]} Kg8 {[%emt 0:00:01]} 46. Qe4 {[%emt 0:00:38]} Qxa3 {[%emt 0:00:47]} 47. Qe8+ {[%emt 0:00:37]} Qf8 {[%emt 0:00:06]} 48. d6 {[%emt 0:01:06]} Qxe8 {[%emt 0:00:43]} 49. Bxe8 {[%emt 0:00:02]} a3 {[%emt 0:00:08]} 50. d7 {[%emt 0:01:01]} Bxd7 {[%emt 0:00:02]} 51. Bxd7 {[%emt 0:00:06]} a2 {[%emt 0:00:03]} 0-1

[Event "Ujir Singh Thapa Memorial 2080"]
[Site "Butwal"]
[Date "2024.04.07"]
[Round "3.3"]
[White "Vipul Subhashi"]
[Black "Shashi, Prakash"]
[Result "1-0"]
[ECO "B40"]
[WhiteElo "1971"]
[BlackElo "1815"]
[Annotator "RC"]
[PlyCount "95"]
[EventDate "2024.04.03"]
[EventType "swiss"]
[EventCountry "NEP"]
[SourceTitle "playchess.com"]
[Source "ChessBase"]
[SourceQuality "1"]
[TimeControl "3600+30"]

1. e4 {[%emt 0:03:31]} c5 {[%emt 0:06:47]} 2. Nf3 {[%emt 0:00:46]} e6 {[%emt 0:00:07]} 3. d3 {[%emt 0:00:14]} Nc6 {[%emt 0:00:28]} 4. Nbd2 {[%emt 0:00:03]} Qc7 {[%emt 0:00:29]} 5. g3 {[%emt 0:00:19]} Nf6 {[%emt 0:00:13]} 6. Bg2 {[%emt 0:00:09]} Be7 {[%emt 0:00:44]} 7. O-O {[%emt 0:00:09]} d6 {[%emt 0:02:04]} 8. Re1 {[%emt 0:04:01]} Bd7 {[%emt 0:02:00]} 9. c3 {[%emt 0:00:39]} Ne5 {[%emt 0:05:23]} 10. Nb1 {[%emt 0:08:55]} c4 {[%emt 0:10:07]} 11. Nxe5 {[%emt 0:03:12]} dxe5 {[%emt 0:00:03]} 12. d4 {[%emt 0:00:08]} h6 {[%emt 0:05:22]} 13. dxe5 {[%emt 0:04:25]} Qxe5 {[%emt 0:00:42]} 14. Bf4 {[%emt 0:00:29]} Qb5 {[%emt 0:01:16]} 15. Na3 {[%emt 0:02:33]} Bxa3 {[%emt 0:12:51]} 16. bxa3 {[%emt 0:00:20]} Bc6 {[%emt 0:02:38]} 17. Rb1 {[%emt 0:02:39]} Qa5 {[%emt 0:01:01]} 18. Bd6 {[%emt 0:08:42]} O-O-O {[%emt 0:01:54]} 19. Qd4 e5 {[%emt 0:13:37]} 20. Qxe5 {[%emt 0:29:16]} Qxe5 21. Bxe5 {[%emt 0:00:00]} Rhe8 {[%emt 0:01:47]} 22. Bh3+ {[%emt 0:00:00]} Bd7 {[%emt 0:00:14]} 23. Bxf6 {[%emt 0:00:00]} gxf6 {[%emt 0:00:20]} 24. Bf1 {[%emt 0:00:00]} Be6 {[%emt 0:01:45]} 25. Rb4 {[%emt 0:00:00]} Rd2 {[%emt 0:00:28]} 26. Bxc4 {[%emt 0:00:00]} a5 {[%emt 0:00:29]} 27. Bxe6+ {[%emt 0:00:00]} fxe6 {[%emt 0:00:27]} 28. Rb5 {[%emt 0:00:00]} Rxa2 {[%emt 0:00:34]} 29. Rxa5 {[%emt 0:00:00]} Re7 {[%emt 0:00:25]} 30. Re3 {[%emt 0:00:00]} Rc7 {[%emt 0:00:43]} 31. Ra8+ {[%emt 0:00:00]} Kd7 {[%emt 0:00:04]} 32. Rd3+ {[%emt 0:00:00]} Ke7 {[%emt 0:00:29]} 33. Rh8 {[%emt 0:00:00]} Rc4 {[%emt 0:00:54]} 34. Rh7+ {[%emt 0:00:00]} Ke8 {[%emt 0:00:01]} 35. Rdd7 {[%emt 0:00:00]} Rb2 {[%emt 0:00:50]} 36. Rde7+ {[%emt 0:00:00]} Kf8 {[%emt 0:00:10]} 37. Rxe6 {[%emt 0:00:00]} Rxc3 {[%emt 0:00:10]} 38. Rxf6+ {[%emt 0:00:00]} Kg8 {[%emt 0:00:01]} 39. Rff7 {[%emt 0:00:00]} b5 {[%emt 0:01:00]} 40. Rfg7+ {[%emt 0:00:00]} Kf8 {[%emt 0:00:01]} 41. Ra7 {[%emt 0:01:17]} Kg8 {[%emt 0:00:21]} 42. Rhg7+ {[%emt 0:00:40]} Kf8 {[%emt 0:01:38]} 43. Rgb7 {[%emt 0:01:09]} Rc8 {[%emt 0:00:12]} 44. Rh7 {[%emt 0:01:10]} Kg8 {[%emt 0:00:59]} 45. Rag7+ {[%emt 0:00:33]} Kf8 {[%emt 0:00:02]} 46. Rh8+ {[%emt 0:01:17]} Kxg7 {[%emt 0:00:02]} 47. Rxc8 {[%emt 0:00:06]} Rb3 {[%emt 0:00:14]} 48. Rc5 {[%emt 0:01:10]} 1-0

[Event "Ujir Singh Thapa Memorial 2080"]
[Site "Butwal"]
[Date "2024.04.07"]
[Round "3.4"]
[White "Thaiba, Bijan Man"]
[Black "Jaiswal, Rupesh"]
[Result "0-1"]
[ECO "B00"]
[WhiteElo "1806"]
[BlackElo "1969"]
[Annotator "RC"]
[PlyCount "62"]
[EventDate "2024.04.03"]
[EventType "swiss"]
[EventCountry "NEP"]
[SourceTitle "playchess.com"]
[Source "ChessBase"]
[SourceQuality "1"]
[TimeControl "3600+30"]

1. e4 {[%emt 0:08:16]} a6 {[%emt 0:00:05]} 2. d4 {[%emt 0:00:16]} g6 {[%emt 0:00:06]} 3. Nf3 {[%emt 0:00:24]} Bg7 {[%emt 0:00:02]} 4. Bc4 {[%emt 0:01:49]} b5 {[%emt 0:00:52]} 5. Bb3 {[%emt 0:00:22]} Bb7 {[%emt 0:00:14]} 6. e5 {[%emt 0:01:57]} Nc6 {[%emt 0:02:19]} 7. c3 {[%emt 0:07:37]} Na5 {[%emt 0:01:55]} 8. Bc2 {[%emt 0:01:07]} d6 {[%emt 0:00:19]} 9. O-O {[%emt 0:03:28]} dxe5 {[%emt 0:01:54]} 10. Nxe5 {[%emt 0:02:13]} Qd5 {[%emt 0:01:51]} 11. Nf3 {[%emt 0:03:10]} Nf6 {[%emt 0:02:58]} 12. Re1 {[%emt 0:02:19]} e6 {[%emt 0:02:08]} 13. Bf4 {[%emt 0:05:00]} Rc8 {[%emt 0:00:40]} 14. Nbd2 {[%emt 0:01:56]} O-O {[%emt 0:01:32]} 15. Ne4 {[%emt 0:06:28]} Qf5 {[%emt 0:03:01]} 16. Nxf6+ {[%emt 0:04:31]} Qxf6 {[%emt 0:00:24]} 17. Be5 {[%emt 0:00:25]} Bxf3 {[%emt 0:00:21]} 18. Qd3 {[%emt 0:04:00]} Qf5 {[%emt 0:02:26]} 19. Bxg7 {[%emt 0:03:55]} Kxg7 {[%emt 0:01:10]} 20. Qxf5 {[%emt 0:00:25]} gxf5 {[%emt 0:00:05]} 21. gxf3 {[%emt 0:00:05]} Nc4 {[%emt 0:00:32]} 22. b3 {[%emt 0:00:53]} Nb6 {[%emt 0:00:34]} 23. Kg2 {[%emt 0:04:05]} c5 {[%emt 0:01:37]} 24. Rac1 {[%emt 0:03:21]} cxd4 {[%emt 0:02:43]} 25. cxd4 {[%emt 0:00:10]} Rfd8 {[%emt 0:00:01]} 26. Red1 {[%emt 0:01:31]} Nd5 {[%emt 0:00:08]} 27. Bb1 {[%emt 0:00:46]} Nf4+ {[%emt 0:00:50]} 28. Kf1 {[%emt 0:01:25]} Rxd4 {[%emt 0:00:15]} 29. Re1 {[%emt 0:01:15]} Rxc1 {[%emt 0:00:24]} 30. Rxc1 {[%emt 0:00:06]} Rd2 {[%emt 0:00:20]} 31. Ke1 {[%emt 0:01:10]} Rb2 {[%emt 0:01:22]} 0-1

[Event "Ujir Singh Thapa Memorial 2080"]
[Site "Butwal"]
[Date "2024.04.07"]
[Round "3.5"]
[White "Sinha, Sudhir Kumar"]
[Black "Dileep, Tripathi"]
[Result "1-0"]
[ECO "B07"]
[WhiteElo "1968"]
[BlackElo "1783"]
[Annotator "RC"]
[PlyCount "101"]
[EventDate "2024.04.03"]
[EventType "swiss"]
[EventCountry "NEP"]
[SourceTitle "playchess.com"]
[Source "ChessBase"]
[SourceQuality "1"]
[TimeControl "3600+30"]

1. e4 {[%emt 0:09:30]} d6 {[%emt 0:03:28]} 2. d4 {[%emt 0:03:10]} Nf6 {[%emt 0:00:04]} 3. Nc3 {[%emt 0:00:30]} g6 {[%emt 0:00:03]} 4. Be3 {[%emt 0:00:58]} Bg7 {[%emt 0:00:07]} 5. f3 {[%emt 0:00:21]} c6 {[%emt 0:00:38]} 6. Qd2 {[%emt 0:00:26]} Nbd7 {[%emt 0:00:34]} 7. Bh6 {[%emt 0:00:19]} Bxh6 {[%emt 0:03:58]} 8. Qxh6 {[%emt 0:01:12]} Qa5 {[%emt 0:00:52]} 9. O-O-O {[%emt 0:06:27]} b5 {[%emt 0:02:16]} 10. Kb1 {[%emt 0:01:15]} b4 {[%emt 0:01:03]} 11. Nce2 {[%emt 0:00:13]} c5 {[%emt 0:00:45]} 12. Nc1 {[%emt 0:00:26]} Qc7 {[%emt 0:01:03]} 13. g4 {[%emt 0:06:43]} c4 {[%emt 0:03:18]} 14. h4 {[%emt 0:01:28]} Rg8 {[%emt 0:07:21]} 15. Nge2 {[%emt 0:05:50]} a5 {[%emt 0:04:02]} 16. Nf4 {[%emt 0:00:36]} e5 {[%emt 0:05:28]} 17. g5 {[%emt 0:02:03]} exf4 {[%emt 0:04:32]} 18. gxf6 {[%emt 0:01:49]} Nxf6 {[%emt 0:00:15]} 19. Qxf4 {[%emt 0:00:23]} Nh5 {[%emt 0:01:48]} 20. Qg5 {[%emt 0:01:03]} Bd7 {[%emt 0:03:48]} 21. d5 {[%emt 0:02:35]} a4 {[%emt 0:04:44]} 22. e5 {[%emt 0:02:07]} Bf5 {[%emt 0:09:37]} 23. exd6 {[%emt 0:01:47]} Qxd6 {[%emt 0:00:48]} 24. Bxc4 {[%emt 0:03:25]} Kf8 {[%emt 0:02:32]} 25. Bd3 {[%emt 0:01:33]} Bd7 {[%emt 0:00:20]} 26. Rhe1 {[%emt 0:01:13]} f6 {[%emt 0:02:44]} 27. Qe3 {[%emt 0:04:59]} Rg7 {[%emt 0:01:45]} 28. Qd4 {[%emt 0:01:42]} Ra5 {[%emt 0:00:48]} 29. Bc4 {[%emt 0:00:57]} Nf4 {[%emt 0:01:11]} 30. Re4 {[%emt 0:00:32]} g5 {[%emt 0:00:45]} 31. hxg5 {[%emt 0:00:17]} fxg5 {[%emt 0:00:02]} 32. Ne2 {[%emt 0:04:06]} Ng6 {[%emt 0:01:10]} 33. Qe3 {[%emt 0:02:19]} Nh4 {[%emt 0:01:18]} 34. Nd4 {[%emt 0:01:12]} Nf5 {[%emt 0:01:01]} 35. Nxf5 {[%emt 0:00:38]} Bxf5 {[%emt 0:00:02]} 36. Re8+ {[%emt 0:00:13]} Kf7 {[%emt 0:00:01]} 37. Re7+ {[%emt 0:02:13]} Kg6 {[%emt 0:03:48]} 38. Rxg7+ {[%emt 0:00:04]} Kxg7 {[%emt 0:00:01]} 39. Qxg5+ {[%emt 0:00:02]} Bg6 {[%emt 0:00:03]} 40. Re1 {[%emt 0:00:17]} Ra7 {[%emt 0:00:39]} 41. f4 {[%emt 0:00:17]} Rf7 {[%emt 0:00:58]} 42. Qe5+ {[%emt 0:00:20]} Qf6 {[%emt 0:00:07]} 43. d6 {[%emt 0:00:12]} Rd7 {[%emt 0:00:16]} 44. Rd1 {[%emt 0:00:41]} b3 {[%emt 0:01:40]} 45. axb3 {[%emt 0:00:16]} axb3 {[%emt 0:00:01]} 46. Bxb3 {[%emt 0:00:07]} h5 {[%emt 0:01:00]} 47. Ba4 {[%emt 0:00:02]} Rd8 {[%emt 0:00:10]} 48. d7 {[%emt 0:00:09]} h4 {[%emt 0:00:46]} 49. Rh1 {[%emt 0:01:12]} Rh8 {[%emt 0:00:43]} 50. Rxh4 {[%emt 0:00:11]} Rxh4 {[%emt 0:00:11]} 51. Qxf6+ {[%emt 0:00:07]} 1-0

[Event "Ujir Singh Thapa Memorial 2080"]
[Site "Butwal"]
[Date "2024.04.07"]
[Round "3.6"]
[White "Vinayak Singh Yadav"]
[Black "Thapa, Krishna"]
[Result "1/2-1/2"]
[ECO "B46"]
[WhiteElo "1748"]
[BlackElo "1963"]
[Annotator "RC"]
[PlyCount "138"]
[EventDate "2024.04.03"]
[EventType "swiss"]
[EventCountry "NEP"]
[SourceTitle "playchess.com"]
[Source "ChessBase"]
[SourceQuality "1"]
[TimeControl "3600+30"]

1. e4 {[%emt 0:09:32]} c5 2. Nf3 {[%emt 0:02:01]} e6 {[%emt 0:00:07]} 3. d4 {[%emt 0:00:24]} cxd4 {[%emt 0:00:05]} 4. Nxd4 {[%emt 0:00:09]} Nf6 {[%emt 0:00:03]} 5. Bd3 {[%emt 0:01:16]} Nc6 {[%emt 0:00:34]} 6. Be3 {[%emt 0:01:08]} a6 {[%emt 0:01:07]} 7. Nc3 {[%emt 0:04:34]} Ne5 {[%emt 0:05:49]} 8. O-O {[%emt 0:00:57]} b5 {[%emt 0:01:37]} 9. h3 {[%emt 0:06:04]} Bb7 {[%emt 0:05:09]} 10. f4 {[%emt 0:16:49]} Nc4 {[%emt 0:04:59]} 11. Bxc4 {[%emt 0:00:17]} bxc4 {[%emt 0:00:02]} 12. e5 {[%emt 0:01:03]} Nd5 {[%emt 0:00:50]} 13. Nxd5 {[%emt 0:00:14]} Bxd5 {[%emt 0:00:02]} 14. f5 {[%emt 0:00:41]} Qc7 {[%emt 0:04:35]} 15. fxe6 {[%emt 0:06:15]} dxe6 {[%emt 0:01:03]} 16. c3 {[%emt 0:02:15]} Qd7 {[%emt 0:05:18]} 17. Qg4 {[%emt 0:00:59]} g6 {[%emt 0:04:06]} 18. Bg5 {[%emt 0:04:14]} Bg7 {[%emt 0:06:30]} 19. Bf6 {[%emt 0:00:21]} Bxf6 {[%emt 0:01:53]} 20. Rxf6 {[%emt 0:02:09]} Rb8 {[%emt 0:06:33]} 21. Rf2 {[%emt 0:09:38]} h5 {[%emt 0:02:40]} 22. Qf4 {[%emt 0:00:00]} Qe7 {[%emt 0:00:54]} 23. b4 {[%emt 0:00:00]} g5 {[%emt 0:05:23]} 24. Qf6 {[%emt 0:00:00]} Qxf6 {[%emt 0:01:19]} 25. Rxf6 {[%emt 0:00:00]} Ke7 {[%emt 0:04:28]} 26. g3 {[%emt 0:00:52]} Bb7 {[%emt 0:02:58]} 27. a4 {[%emt 0:01:05]} Rbd8 {[%emt 0:00:06]} 28. Rf2 {[%emt 0:00:46]} Rd5 {[%emt 0:00:54]} 29. Raf1 {[%emt 0:00:27]} Rh7 {[%emt 0:00:20]} 30. Re1 {[%emt 0:00:16]} Rh8 {[%emt 0:01:58]} 31. b5 {[%emt 0:00:36]} Rh7 {[%emt 0:03:46]} 32. bxa6 {[%emt 0:00:42]} Bxa6 {[%emt 0:00:11]} 33. Nc6+ {[%emt 0:00:33]} Kf8 {[%emt 0:00:56]} 34. Rb2 {[%emt 0:00:27]} Rc5 {[%emt 0:00:28]} 35. Rb8+ {[%emt 0:00:35]} Kg7 {[%emt 0:00:07]} 36. Nb4 {[%emt 0:00:29]} Bc8 {[%emt 0:00:14]} 37. a5 {[%emt 0:00:32]} Rh8 {[%emt 0:00:11]} 38. Ra1 {[%emt 0:00:29]} Rxe5 {[%emt 0:01:25]} 39. a6 {[%emt 0:00:38]} Bxa6 {[%emt 0:00:10]} 40. Rxh8 {[%emt 0:00:30]} Kxh8 {[%emt 0:00:05]} 41. Rxa6 {[%emt 0:00:26]} Re3 {[%emt 0:00:11]} 42. Kf2 {[%emt 0:00:30]} Rxc3 {[%emt 0:00:03]} 43. Ra5 {[%emt 0:00:30]} Rb3 {[%emt 0:01:10]} 44. Nc6 {[%emt 0:00:24]} f6 {[%emt 0:01:21]} 45. Rc5 {[%emt 0:01:13]} h4 {[%emt 0:00:30]} 46. gxh4 {[%emt 0:00:00]} gxh4 {[%emt 0:00:41]} 47. Rh5+ {[%emt 0:00:14]} Kg7 {[%emt 0:00:05]} 48. Rxh4 {[%emt 0:00:04]} c3 {[%emt 0:00:26]} 49. Rc4 {[%emt 0:00:27]} e5 {[%emt 0:00:25]} 50. Ke2 {[%emt 0:01:10]} c2 {[%emt 0:00:20]} 51. Rxc2 {[%emt 0:00:06]} Rxh3 {[%emt 0:00:03]} 52. Nxe5 {[%emt 0:00:57]} fxe5 {[%emt 0:01:00]} 53. Rc6 {[%emt 0:00:04]} Kf7 {[%emt 0:00:16]} 54. Kf2 {[%emt 0:00:07]} Ke7 {[%emt 0:00:13]} 55. Ke2 {[%emt 0:00:03]} Kd7 {[%emt 0:00:18]} 56. Ra6 {[%emt 0:00:03]} Rc3 {[%emt 0:00:12]} 57. Kd2 {[%emt 0:00:35]} Rc6 {[%emt 0:01:20]} 58. Rxc6 {[%emt 0:00:22]} Kxc6 {[%emt 0:00:01]} 59. Ke3 {[%emt 0:00:15]} Kd5 {[%emt 0:00:02]} 60. Kd3 {[%emt 0:00:30]} e4+ {[%emt 0:00:02]} 61. Ke3 {[%emt 0:00:04]} Ke5 {[%emt 0:00:06]} 62. Ke2 {[%emt 0:00:08]} Kf4 {[%emt 0:00:01]} 63. Kf2 {[%emt 0:00:05]} e3+ {[%emt 0:00:01]} 64. Ke2 {[%emt 0:00:04]} Ke4 {[%emt 0:00:05]} 65. Ke1 {[%emt 0:00:10]} Kd4 {[%emt 0:00:01]} 66. Ke2 {[%emt 0:00:07]} Ke4 {[%emt 0:00:00]} 67. Ke1 {[%emt 0:00:01]} Kf3 {[%emt 0:00:01]} 68. Kf1 {[%emt 0:00:11]} e2+ {[%emt 0:00:01]} 69. Ke1 {[%emt 0:00:05]} Ke3 {[%emt 0:00:02]} 1/2-1/2

[Event "Ujir Singh Thapa Memorial 2080"]
[Site "Butwal"]
[Date "2024.04.07"]
[Round "3.7"]
[White "Rishabh Nishad"]
[Black "Subedi, Sushil"]
[Result "1-0"]
[ECO "C45"]
[WhiteElo "1953"]
[BlackElo "1741"]
[Annotator "RC"]
[PlyCount "51"]
[EventDate "2024.04.03"]
[EventType "swiss"]
[EventCountry "NEP"]
[SourceTitle "playchess.com"]
[Source "ChessBase"]
[SourceQuality "1"]
[TimeControl "3600+30"]

1. e4 {[%emt 0:10:29]} e5 {[%emt 0:00:24]} 2. Nf3 {[%emt 0:00:05]} Nc6 {[%emt 0:00:08]} 3. d4 {[%emt 0:00:04]} exd4 {[%emt 0:00:10]} 4. Nxd4 {[%emt 0:00:04]} Qh4 {[%emt 0:00:22]} 5. Nc3 {[%emt 0:00:14]} Bb4 {[%emt 0:00:49]} 6. Be2 {[%emt 0:00:24]} Qxe4 {[%emt 0:09:12]} 7. Ndb5 {[%emt 0:00:11]} Bxc3+ {[%emt 0:00:22]} 8. bxc3 {[%emt 0:00:05]} Kd8 {[%emt 0:00:29]} 9. O-O {[%emt 0:00:17]} a6 {[%emt 0:05:14]} 10. Nd4 {[%emt 0:01:25]} Nge7 {[%emt 0:05:08]} 11. Bg5 {[%emt 0:09:17]} h6 {[%emt 0:02:48]} 12. Bf3 {[%emt 0:04:16]} Qg6 {[%emt 0:04:11]} 13. Nxc6+ {[%emt 0:00:55]} bxc6 {[%emt 0:00:48]} 14. Bh4 {[%emt 0:03:13]} f6 {[%emt 0:10:18]} 15. Re1 {[%emt 0:04:17]} d6 {[%emt 0:07:08]} 16. Rxe7 {[%emt 0:22:28]} Kxe7 {[%emt 0:00:50]} 17. Qe2+ {[%emt 0:01:28]} Kd8 {[%emt 0:04:23]} 18. Bxc6 {[%emt 0:00:42]} Rb8 19. Re1 {[%emt 0:00:33]} Qf7 20. Qe3 {[%emt 0:03:46]} Rb6 {[%emt 0:08:09]} 21. Bd5 {[%emt 0:00:48]} Qe8 {[%emt 0:02:02]} 22. Qd2 {[%emt 0:00:15]} Qa4 {[%emt 0:01:29]} 23. c4 {[%emt 0:02:22]} Rb2 {[%emt 0:02:43]} 24. Qc3 {[%emt 0:01:31]} Qxc2 {[%emt 0:03:41]} 25. Bxf6+ {[%emt 0:00:22]} Kd7 {[%emt 0:00:04]} 26. Qh3+ {[%emt 0:03:59]} 1-0

[Event "Ujir Singh Thapa Memorial 2080"]
[Site "Butwal"]
[Date "2024.04.07"]
[Round "4.1"]
[White "Raghav, Srivathsav V"]
[Black "Chaulagain, Purushottam"]
[Result "0-1"]
[ECO "A15"]
[WhiteElo "1983"]
[BlackElo "1906"]
[Annotator "RC"]
[PlyCount "23"]
[EventDate "2024.04.03"]
[EventType "swiss"]
[EventCountry "NEP"]
[SourceTitle "playchess.com"]
[Source "ChessBase"]
[SourceQuality "1"]
[TimeControl "3600+30"]

1. Nf3 {[%emt 0:00:09]} d5 {[%emt 0:00:06]} 2. b3 {[%emt 0:00:05]} Nf6 {[%emt 0:01:25]} 3. Bb2 {[%emt 0:00:06]} g6 {[%emt 0:01:41]} 4. c4 {[%emt 0:03:23]} Bg7 {[%emt 0:01:58]} 5. cxd5 {[%emt 0:00:22]} O-O {[%emt 0:00:15]} 6. g3 {[%emt 0:00:04]} b6 {[%emt 0:02:12]} 7. Bg2 {[%emt 0:03:36]} Bb7 {[%emt 0:00:06]} 8. O-O {[%emt 0:00:07]} Bxd5 {[%emt 0:00:59]} 9. Nc3 {[%emt 0:00:03]} Bb7 {[%emt 0:00:33]} 10. Qc2 {[%emt 0:01:45]} c5 {[%emt 0:01:50]} 11. Rfd1 {[%emt 0:01:51]} Nc6 {[%emt 0:00:13]} 12. a3 {[%emt 0:03:05]} 0-1